bitfinex-derivatives/quotes_ETHF0:USTF0_20250205
["timestamp","ask_amount","ask_price","bid_price","bid_amount"]
[1738735039765,3.26680084,2777.3,2775.4,3.77077784]
[1738735039966,3.2078,2776.5,2775.4,3.2078]
[1738735040162,3.2078,2776.1,2775.3,3.2078]
[1738735040365,3.784,2776.1,2774.9,3.2078]
[1738735040569,3.2078,2775.6,2774.9,3.2078]
[1738735040969,3.2078,2775.6,2774.2,1.3194]
[1738735040970,0.00539753,2775.5,2775.0,0.00539753]
[1738735041165,0.00539753,2775.5,2775.0,3.21319753]
[1738735041474,0.1,3910.0,2775.4,3.2078]
[1738735041475,3.2078,2777.3,2775.4,3.2078]
[1738735041675,3.2078,2777.3,2776.3,3.2078]
[1738735041870,0.05902369,2777.2,2776.3,3.2078]
[1738735042473,3.2078,2777.6,2776.5,0.00539753]
[1738735042674,0.05901937,2777.5,2776.5,0.00539753]
[1738735043067,3.2078,2777.4,2776.5,0.00539753]
[1738735043270,3.2078,2776.8,2776.5,0.00539753]
[1738735043570,0.05903443,2776.7,2776.5,0.00539753]
[1738735043865,3.2078,2776.8,2776.5,0.00539753]
[1738735044068,0.05903362,2776.7,2776.5,0.00539753]
[1738735044269,0.5761,2776.6,2776.5,0.00539753]
[1738735044467,0.57618,2776.3,2775.1,3.2078]
[1738735044775,3.2078,2776.2,2775.4,3.2078]
[1738735045168,0.05904895,2776.1,2775.4,3.2078]
[1738735045569,3.2078,2775.9,2775.0,3.2078]
[1738735045771,3.2078,2775.9,2775.5,0.00539753]
[1738735046575,0.00539753,2776.0,2775.5,3.21319753]
[1738735046777,0.00539753,2776.0,2775.5,0.00539753]
[1738735047069,1.22946,2777.8,2775.8,3.2078]
[1738735047276,1.22946,2777.8,2776.5,3.2078]
[1738735047277,0.05902103,2777.7,2776.5,3.2078]
[1738735047470,3.2078,2777.3,2776.5,3.2078]
[1738735047672,0.6536,2777.8,2776.5,3.2078]
[1738735047867,0.05901551,2777.7,2776.5,3.2078]
[1738735048269,0.57592,2777.5,2776.5,3.2078]
[1738735048476,0.05901551,2777.4,2776.5,3.2078]
[1738735048677,0.05901551,2777.3,2776.9,3.2078]
[1738735048876,3.2078,2777.7,2776.9,3.2078]
[1738735049073,0.05901011,2777.6,2776.9,3.2078]
[1738735049274,3.2078,2777.5,2776.8,0.00539753]
[1738735049474,0.05901011,2777.4,2777.1,3.2078]
[1738735049677,0.0590015,2778.4,2777.2,3.2078]
[1738735049881,0.6756,2779.3,2778.0,3.2078]
[1738735050179,4.45894,2779.3,2778.3,3.2078]
[1738735050481,4.45894,2779.3,2778.4,0.00539753]
[1738735050777,0.05851769,2779.2,2778.4,0.00539753]
[1738735052075,0.05851769,2779.2,2778.5,3.2078]
[1738735052377,0.05851769,2779.2,2778.6,3.2078]
[1738735052579,0.05851769,2779.2,2778.9,3.2078]
[1738735052785,0.05850632,2779.5,2778.9,3.2078]
[1738735052977,0.05850632,2779.5,2778.4,0.00539753]
[1738735052978,3.2078,2779.6,2779.2,3.2078]
[1738735053281,3.2078,2780.6,2779.5,3.2078]
[1738735053485,3.2078,2780.6,2779.9,3.2078]
[1738735053680,3.2078,2780.6,2779.4,3.2078]
[1738735053881,3.2078,2781.2,2779.7,3.2078]
[1738735054092,3.2078,2781.2,2779.7,8.2078]
[1738735054093,4.84173136,2780.0,2779.7,8.2078]
[1738735054289,3.2078,2781.5,2779.8,4.58169082]
[1738735054498,0.05846883,2781.4,2780.3,3.2078]
[1738735054789,3.2078,2781.2,2780.3,3.2078]
[1738735054990,3.2078,2781.2,2780.6,0.00539753]
[1738735055197,3.2078,2782.1,2780.7,3.2078]
[1738735055395,7.907,2785.8,2780.7,3.2078]
[1738735055396,0.44971344,2786.1,2784.7,3.2078]
[1738735055588,0.44971344,2786.1,2786.0,3.2078]
[1738735056093,0.57661397,2788.0,2786.0,3.2078]
[1738735056094,0.00287397,2788.0,2786.0,3.2078]
[1738735056293,0.00287397,2788.0,2786.5,3.2078]
[1738735056294,3.2078,2787.8,2786.5,3.2078]
[1738735056490,3.2078,2787.7,2786.5,3.2078]
[1738735056887,0.57383,2787.6,2786.3,3.2078]
[1738735057091,0.57383,2787.6,2784.9,2.178]
[1738735057092,3.2078,2787.7,2786.8,0.00538522]
[1738735057996,0.00287397,2788.0,2786.8,0.00538522]
[1738735058192,3.2078,2787.3,2786.8,0.00538522]
[1738735058393,0.00287397,2788.0,2786.8,0.00538522]
[1738735058394,0.00287397,2788.0,2786.9,3.2078]
[1738735058591,0.00287397,2788.0,2787.9,3.2078]
[1738735058791,0.00287397,2788.0,2787.1,3.2078]
[1738735058999,3.2078,2787.9,2787.1,3.2078]
[1738735059193,3.2078,2787.7,2787.0,3.2078]
[1738735059590,0.00287397,2788.0,2786.8,3.21318522]
[1738735059796,0.00287397,2788.0,2787.3,3.2078]
[1738735060093,3.2078,2787.7,2787.0,3.2078]
[1738735060294,0.00287397,2788.0,2787.0,3.2078]
[1738735061301,3.2078,2787.6,2786.8,0.00538522]
[1738735061596,3.2078,2786.9,2785.2,3.2078]
[1738735061801,0.00287397,2788.0,2785.2,3.2078]
[1738735061802,3.2078,2786.4,2785.2,3.2078]
[1738735062106,3.2078,2786.8,2785.2,3.2078]
[1738735062600,3.2078,2786.0,2785.2,3.2078]
[1738735062797,0.0053442,2786.3,2785.7,0.00538522]
[1738735062999,3.2078,2786.2,2785.7,0.00538522]
[1738735063301,0.0053442,2786.3,2785.7,0.00538522]
[1738735063494,3.2078,2786.2,2785.7,0.00538522]
[1738735065300,3.2078,2785.9,2785.7,0.00538522]
[1738735065502,3.2078,2786.2,2785.7,0.00538522]
[1738735066003,0.0053442,2786.3,2785.7,0.00538522]
[1738735066004,3.2078,2785.9,2785.7,0.00538522]
[1738735066299,3.2078,2786.2,2785.7,0.00538522]
[1738735067601,3.2078,2785.8,2785.7,0.00538522]
[1738735067801,3.2078,2786.2,2785.7,0.00538522]
[1738735068602,3.2078,2785.8,2785.7,0.00538522]
[1738735068800,3.2078,2786.2,2785.7,0.00538522]
[1738735072206,0.05836042,2786.1,2785.7,0.00538522]
[1738735072711,3.2078,2785.9,2785.7,0.00538522]
[1738735073410,3.2078,2786.2,2785.7,0.00538522]
[1738735074804,0.0053442,2786.3,2785.7,0.00538522]
[1738735076607,3.2078,2785.8,2785.7,0.00538522]
[1738735077007,0.0053442,2786.3,2785.7,0.00538522]
[1738735077316,3.2078,2785.9,2785.7,0.00538522]
[1738735079401,0.0583647,2785.8,2784.2,3.2078]
[1738735079607,3.2078,2785.9,2784.6,3.2078]
[1738735079906,0.05836937,2785.8,2784.6,3.2078]
[1738735080408,3.2078,2785.1,2784.2,3.2078]
[1738735080610,1.56166937,2785.8,2783.4,3.2078]
[1738735080611,3.2078,2784.8,2783.4,3.2078]
[1738735081002,0.00538522,2785.5,2783.4,3.2078]
[1738735081003,0.00538522,2785.5,2784.7,3.2078]
[1738735081209,0.00618554,2785.8,2785.4,3.2078]
[1738735081415,2.9131,2787.1,2785.7,3.2078]
[1738735081612,2.9131,2787.1,2786.6,3.2078]
[1738735081815,0.00287397,2788.0,2784.7,6.42522175]
[1738735081816,3.21067397,2788.0,2786.9,3.2078]
[1738735082116,0.05831669,2787.9,2787.2,3.2078]
[1738735082414,3.21067397,2788.0,2787.2,3.2078]
[1738735082603,0.0053442,2787.8,2787.3,0.00538522]
[1738735083113,2.17031767,2787.7,2786.2,3.2078]
[1738735083308,0.05831767,2787.6,2786.5,3.2078]
[1738735083514,0.05831767,2787.6,2786.6,3.2078]
[1738735083710,0.05831767,2787.5,2786.6,3.2078]
[1738735083909,0.5738,2787.7,2786.6,3.2078]
[1738735084107,3.2078,2787.0,2786.3,3.2078]
[1738735084309,0.0053442,2787.8,2786.8,0.00538522]
[1738735084310,3.2078,2787.5,2786.8,0.00538522]
[1738735084612,3.2078,2786.9,2786.0,3.2078]
[1738735084809,0.05833036,2786.8,2786.3,3.2078]
[1738735085009,3.2131442,2787.8,2786.3,3.2078]
[1738735085210,0.63212931,2787.7,2786.6,3.2078]
[1738735085412,3.2078,2786.8,2786.4,0.56088265]
[1738735085910,3.2078,2786.5,2786.3,0.00538522]
[1738735086116,3.2078,2786.8,2786.3,0.00538522]
[1738735086313,0.05834085,2786.7,2786.3,0.00538522]
[1738735086908,0.05834641,2786.6,2786.3,0.00538522]
[1738735087108,3.26614641,2786.5,2786.3,0.00538522]
[1738735087310,0.05834797,2786.4,2786.3,0.00538522]
[1738735087510,3.2078,2786.5,2786.3,0.00538522]
[1738735087910,0.05834818,2786.4,2786.3,0.00538522]
[1738735088119,0.05834818,2786.4,2785.5,3.2078]
[1738735088320,3.2078,2786.0,2785.5,3.2078]
[1738735088909,3.2078,2786.0,2785.2,3.2078]
[1738735089213,1.6913,2787.2,2785.8,3.2078]
[1738735089414,0.05833925,2787.1,2786.0,3.2078]
[1738735089717,3.2078,2786.6,2785.7,3.2078]
[1738735089919,0.05834221,2786.5,2785.7,3.2078]
[1738735090118,0.05834738,2786.4,2785.6,3.2078]
[1738735090317,0.57404,2786.6,2785.6,3.2078]
[1738735090522,0.05834735,2786.5,2785.6,3.2078]
[1738735090815,0.05834735,2786.4,2785.6,3.2078]
[1738735091014,0.05834735,2786.3,2785.6,3.2078]
[1738735091523,3.2078,2786.4,2785.6,3.2078]
[1738735092216,0.00538522,2786.8,2786.2,3.2078]
[1738735092518,0.00538522,2786.8,2785.9,3.2078]
[1738735092519,3.26613964,2786.7,2785.9,3.2078]
[1738735092718,0.05833964,2786.6,2785.9,3.2078]
[1738735093116,3.2078,2786.4,2785.5,0.00538522]
[1738735093322,3.78188,2786.4,2785.5,0.00538522]
[1738735093524,0.05835284,2786.3,2785.5,0.00538522]
[1738735093816,3.2078,2786.1,2785.5,0.00538522]
[1738735095318,3.26615256,2786.0,2785.5,0.00538522]
[1738735095520,3.2078,2786.0,2785.5,0.00538522]
[1738735095827,0.05835942,2785.9,2785.5,0.00538522]
[1738735096123,3.2078,2785.7,2785.5,0.00538522]
[1738735096716,0.05836724,2785.6,2784.5,3.2078]
[1738735096920,3.2078,2785.3,2784.5,3.2078]
[1738735097215,0.05836724,2785.2,2784.1,3.2078]
[1738735097822,0.00538522,2784.9,2784.6,3.2078]
[1738735098222,0.00538522,2784.9,2784.7,3.2078]
[1738735101223,0.00538522,2784.9,2784.4,3.21318522]
[1738735101425,0.00538522,2784.9,2784.8,3.2078]
[1738735102526,0.00538522,2784.9,2784.4,0.00538522]
[1738735102927,0.00538522,2784.9,2784.4,3.21318522]
[1738735103329,0.00538522,2784.9,2784.8,3.2078]
[1738735103631,0.00538522,2784.9,2784.4,0.00538522]
[1738735103825,0.00538522,2784.9,2784.6,3.2078]
[1738735104824,0.00538522,2784.9,2784.5,3.2078]
[1738735106732,3.2078,2785.9,2784.8,3.2078]
[1738735106926,3.2078,2785.2,2784.5,3.2078]
[1738735107121,3.2078,2785.5,2784.5,3.2078]
[1738735107326,3.2078,2785.2,2784.5,3.2078]
[1738735107625,3.2078,2785.5,2784.5,3.2078]
[1738735107826,0.00538522,2785.1,2784.8,3.2078]
[1738735109426,0.00538522,2785.1,2784.4,0.00538522]
[1738735109632,0.05837711,2785.0,2784.4,0.00538522]
[1738735109833,0.00538522,2785.1,2784.6,3.2078]
[1738735111634,0.00538522,2785.1,2784.7,3.2078]
[1738735112533,0.05837031,2785.0,2784.7,3.2078]
[1738735112729,0.00538522,2785.1,2784.7,3.2078]
[1738735113931,0.57443,2784.7,2783.7,3.2078]
[1738735114137,0.05836786,2784.6,2783.6,3.2078]
[1738735114325,0.63283786,2784.5,2783.6,3.2078]
[1738735114533,3.2078,2784.3,2783.6,3.2078]
[1738735114840,0.05836786,2784.2,2783.6,3.2078]
[1738735115041,0.05836786,2784.1,2783.7,0.00538522]
[1738735115333,0.05840271,2784.0,2783.7,0.00538522]
[1738735115537,0.05840271,2783.9,2783.7,0.00538522]
[1738735115727,0.05840271,2783.8,2783.7,0.00538522]
[1738735115931,3.2078,2784.1,2783.7,0.00538522]
[1738735116140,0.05840504,2784.0,2783.7,0.00538522]
[1738735117540,3.2078,2783.8,2782.7,3.2078]
[1738735117740,3.2078,2783.3,2782.5,1.7025]
[1738735117945,0.05841378,2783.2,2782.5,1.7025]
[1738735118141,3.78244,2783.7,2782.5,1.7025]
[1738735118340,0.05841482,2783.6,2782.5,1.7025]
[1738735118547,0.63307482,2783.6,2782.5,1.7025]
[1738735118747,0.00538522,2783.3,2782.8,0.00363118]
[1738735118944,0.05841482,2783.2,2782.8,0.00363118]
[1738735119240,0.00538522,2783.3,2782.8,0.00363118]
[1738735119241,0.00538522,2783.3,2782.9,3.2078]
[1738735119440,3.2078,2784.4,2783.2,3.2078]
[1738735119744,0.05839459,2784.3,2783.0,3.2078]
[1738735120045,3.2078,2783.9,2782.8,0.00363118]
[1738735120240,3.2078,2783.5,2782.8,0.00363118]
[1738735120642,0.06379477,2783.4,2782.8,0.00363118]
[1738735120847,0.05840955,2783.3,2782.8,0.00363118]
[1738735121353,3.2078,2783.2,2782.8,0.00363118]
[1738735121550,0.05840955,2783.1,2782.8,0.00363118]
[1738735122354,3.2078,2782.9,2782.8,0.00363118]
[1738735122551,3.26620955,2782.9,2782.8,0.00363118]
[1738735122753,0.00538522,2783.4,2782.8,0.00363118]
[1738735122754,3.2078,2783.2,2782.8,0.00363118]
[1738735122952,0.05842198,2783.1,2782.8,0.00363118]
[1738735123554,3.2078,2783.2,2782.8,0.00363118]
[1738735123948,0.00538522,2783.4,2783.0,3.2078]
[1738735124254,3.2078,2785.2,2783.3,3.2078]
[1738735124549,0.05837974,2785.1,2784.0,3.2078]
[1738735124951,3.84052974,2785.1,2784.0,3.2078]
[1738735125149,0.05837974,2785.0,2784.0,3.2078]
[1738735125358,3.2078,2784.8,2784.0,3.2078]
[1738735125565,0.05837974,2784.7,2784.3,0.00538522]
[1738735126056,3.21318522,2784.8,2784.3,0.00538522]
[1738735126263,3.2078,2785.7,2784.7,3.2078]
[1738735126455,3.2078,2786.0,2785.1,3.2078]
[1738735126657,0.05835623,2785.9,2785.1,3.2078]
[1738735126858,3.2078,2786.0,2785.1,3.2078]
[1738735127255,3.2078,2786.0,2784.3,0.00538522]
[1738735127256,0.05834842,2785.9,2784.6,3.2078]
[1738735127762,0.00538522,2785.8,2785.0,3.2078]
[1738735127965,0.00538522,2785.8,2784.3,0.00538522]
[1738735127966,0.00538522,2785.8,2784.9,3.2078]
[1738735128360,0.00538522,2785.8,2785.0,3.2078]
[1738735128561,0.00538522,2785.8,2785.3,3.2078]
[1738735129060,0.57423,2785.7,2785.0,3.2078]
[1738735129256,0.00538522,2785.8,2785.0,3.2078]
[1738735129257,0.05835859,2785.6,2785.0,3.2078]
[1738735129459,0.00538522,2785.8,2785.0,3.2078]
[1738735129863,0.05835343,2785.7,2785.0,3.2078]
[1738735130060,3.2078,2785.2,2784.7,3.2078]
[1738735130462,0.05836299,2785.1,2784.3,0.00538522]
[1738735130665,3.2078,2785.2,2784.3,3.21318522]
[1738735130865,0.05836844,2785.1,2784.3,3.21318522]
[1738735131062,3.2078,2785.2,2784.3,3.21318522]
[1738735131365,3.2078,2784.8,2784.3,0.00538522]
[1738735131958,3.2078,2784.7,2784.3,0.00538522]
[1738735132167,3.2078,2785.2,2784.4,3.2078]
[1738735132369,3.2078,2784.7,2784.3,0.00538522]
[1738735133666,3.2078,2784.9,2784.3,3.21318522]
[1738735133866,3.33250077,2785.8,2784.3,3.21318522]
[1738735133867,3.2078,2785.7,2784.3,3.21318522]
[1738735134068,0.05836832,2785.6,2785.3,3.2078]
[1738735134274,0.00538522,2785.8,2785.5,3.2078]
[1738735134475,0.00538522,2785.8,2785.4,3.2078]
[1738735135469,0.00538522,2785.8,2785.1,3.2078]
[1738735135770,3.21318522,2785.8,2785.1,3.2078]
[1738735136273,0.00538522,2785.8,2785.1,3.2078]
[1738735136666,0.00538522,2785.8,2785.5,3.2078]
[1738735137073,0.00538522,2785.8,2785.6,3.2078]
[1738735138174,3.2078,2786.8,2785.6,3.2078]
[1738735138175,3.2078,2787.5,2785.6,11.53491555]
[1738735138380,3.2078,2788.6,2787.4,3.2078]
[1738735138569,0.05830524,2788.5,2787.9,3.2078]
[1738735138769,3.2078,2788.6,2787.9,3.2078]
[1738735138969,3.2078,2788.1,2787.1,3.2078]
[1738735139577,3.2078,2787.7,2787.3,0.00538522]
[1738735140272,0.00538522,2787.8,2787.3,0.00538522]
[1738735141374,3.2078,2787.7,2787.3,0.00538522]
[1738735141576,0.00538522,2787.8,2787.6,3.2078]
[1738735142072,0.00538522,2787.8,2787.3,0.00538522]
[1738735142271,3.2078,2787.4,2787.3,0.00538522]
[1738735143275,8.2078,2787.4,2787.3,0.00538522]
[1738735144182,8.2078,2787.4,2786.2,3.2078]
[1738735144485,3.2078,2786.9,2786.2,3.2078]
[1738735145375,3.2078,2786.9,2786.3,0.00538522]
[1738735145778,3.2078,2786.4,2786.3,0.00538522]
[1738735146173,8.2078,2786.4,2786.3,0.00538522]
[1738735146380,3.2078,2786.9,2786.3,0.00538522]
[1738735147073,0.05833846,2786.8,2786.3,0.00538522]
[1738735147380,3.32711555,2787.6,2786.3,0.00538522]
[1738735147381,0.00538522,2787.8,2786.7,3.2078]
[1738735147584,0.00538522,2787.8,2787.5,3.2078]
[1738735147776,0.00538522,2787.8,2787.2,3.2078]
[1738735148086,0.00538522,2787.8,2787.5,3.2078]
[1738735149682,0.00538522,2787.8,2787.2,3.2078]
[1738735149881,0.05785507,2787.7,2787.0,3.2078]
[1738735150077,0.00538522,2787.8,2787.6,3.2078]
[1738735150283,0.00538522,2787.8,2787.5,3.2078]
[1738735150480,0.00538522,2787.8,2787.2,3.2078]
[1738735150681,0.00538522,2787.8,2787.0,3.2078]
[1738735150875,0.00538522,2787.8,2786.6,3.32711555]
[1738735150876,0.00538522,2787.8,2787.4,3.2078]
[1738735151083,0.00538522,2787.8,2787.5,3.2078]
[1738735157783,0.00538522,2787.8,2787.2,3.2078]
[1738735158288,0.00538522,2787.8,2787.5,3.2078]
[1738735159087,0.00538522,2787.8,2787.6,3.32711555]
[1738735159288,0.00287397,2788.0,2787.6,3.32711555]
[1738735159586,3.2078,2789.0,2787.9,3.2078]
[1738735159786,3.2078,2789.3,2788.5,3.2078]
[1738735160384,1.5415,2789.6,2788.5,3.2078]
[1738735160584,0.00538522,2789.2,2789.0,3.2078]
[1738735166194,0.00538522,2789.2,2788.6,0.00538522]
[1738735166897,3.78136,2788.9,2788.6,0.00538522]
[1738735167203,0.57364,2788.6,2787.8,3.2078]
[1738735167496,3.2078,2788.4,2787.8,3.2078]
[1738735167693,0.0578479,2788.3,2787.2,3.2078]
[1738735167997,3.2078,2788.8,2788.1,3.2078]
[1738735168193,3.21318522,2789.2,2788.5,3.2078]
[1738735168395,0.00538522,2789.2,2788.6,3.2078]
[1738735168595,3.2078,2789.5,2788.9,3.2078]
[1738735168796,0.00538522,2788.9,2788.4,6.53491555]
[1738735169098,0.00538522,2788.9,2788.4,3.2078]
[1738735169295,0.00538522,2788.9,2788.5,3.2078]
[1738735169993,0.00538522,2788.9,2788.4,0.00538522]
[1738735169994,0.57364,2788.5,2788.4,0.00538522]
[1738735170191,0.5736,2788.7,2787.4,3.2078]
[1738735170392,3.21318522,2788.9,2787.4,3.2078]
[1738735170598,3.2078,2788.6,2787.1,3.2078]
[1738735170790,0.63148149,2788.5,2787.1,3.2078]
[1738735170997,0.05784149,2788.4,2787.1,3.2078]
[1738735171199,0.57366,2788.4,2787.1,3.2078]
[1738735171399,0.57371,2788.2,2787.5,0.00538522]
[1738735171601,0.57375,2788.0,2787.5,0.00538522]
[1738735171796,0.0578595,2787.9,2787.5,0.00538522]
[1738735172094,3.2078,2787.7,2786.7,3.2078]
[1738735172299,3.2078,2787.0,2786.1,3.2078]
[1738735172502,0.57393,2787.1,2786.1,3.2078]
[1738735172697,3.2078,2787.0,2786.1,3.2078]
[1738735172904,3.2078,2787.0,2785.3,3.32711555]
[1738735172905,3.2078,2786.7,2785.6,3.2078]
[1738735173102,0.00538522,2786.8,2786.3,3.21318522]
[1738735173306,0.00538522,2786.8,2786.3,0.00538522]
[1738735173508,0.00538522,2786.8,2786.3,3.21318522]
[1738735174115,3.2078,2786.7,2786.3,0.00538522]
[1738735174309,0.00538522,2786.8,2786.3,0.00538522]
[1738735175406,3.2078,2786.5,2786.3,0.00538522]
[1738735175903,8.2078,2786.5,2786.3,0.00538522]
[1738735176105,3.2078,2786.5,2786.3,0.00538522]
[1738735176905,8.2078,2786.5,2786.3,0.00538522]
[1738735177212,8.2078,2786.5,2785.5,3.2078]
[1738735177506,3.2078,2786.2,2785.5,3.2078]
[1738735178305,3.2078,2786.2,2785.6,0.00363118]
[1738735179205,3.2078,2786.6,2785.8,3.2078]
[1738735179411,3.78183,2786.6,2785.8,3.2078]
[1738735180110,0.57407,2786.4,2785.8,3.2078]
[1738735180314,0.57409,2786.4,2785.8,3.2078]
[1738735180809,3.2078,2786.3,2785.8,3.2078]
[1738735184209,3.62309156,2786.5,2785.8,3.2078]
[1738735184210,3.04903156,2786.5,2785.8,3.2078]
[1738735184407,0.00538522,2786.8,2785.9,3.2078]
[1738735184604,0.00538522,2786.8,2786.2,3.2078]
[1738735186006,0.00538522,2786.8,2786.0,3.2078]
[1738735187006,3.04903156,2786.5,2786.0,3.2078]
[1738735187507,0.63196335,2786.4,2785.6,0.00363118]
[1738735187807,0.0578919,2786.3,2785.6,0.00363118]
[1738735188113,0.57408,2786.4,2785.6,0.00363118]
[1738735188411,6.25683156,2786.2,2785.6,0.00363118]
[1738735188608,0.57414,2786.1,2785.6,0.00363118]
[1738735188808,6.83095156,2786.2,2785.6,0.00363118]
[1738735189305,6.25683156,2786.2,2785.6,0.00363118]
[1738735189506,0.05789642,2786.1,2785.6,0.00363118]
[1738735189809,6.25683156,2786.2,2785.6,0.00363118]
[1738735190003,0.05789643,2786.1,2785.6,0.00363118]
[1738735190206,3.04903156,2786.2,2785.6,0.00363118]
[1738735190407,3.62314156,2786.2,2785.6,0.00363118]
[1738735190808,6.83094156,2786.2,2785.6,0.00363118]
[1738735191210,0.0578956,2786.1,2785.6,0.00363118]
[1738735191714,6.83095156,2786.2,2785.6,0.00363118]
[1738735194309,0.57421,2785.7,2785.6,0.00363118]
[1738735194513,0.63211791,2785.7,2785.6,0.00363118]
[1738735195013,0.57418,2785.9,2785.6,0.00363118]
[1738735195209,3.2078,2786.0,2785.6,0.00363118]
[1738735195210,3.78196,2786.0,2785.6,0.00363118]
[1738735195410,3.2078,2786.0,2785.6,0.00363118]
[1738735195610,3.10692864,2785.9,2785.6,0.00363118]
[1738735195811,3.04903156,2785.9,2785.6,0.00363118]
[1738735197312,0.57421,2785.7,2785.6,0.00363118]
[1738735197916,3.04903156,2785.9,2785.6,0.00363118]
[1738735198216,0.57421,2785.8,2785.6,0.00363118]
[1738735198917,6.25683156,2786.3,2785.6,0.00363118]
[1738735199217,0.00538522,2786.8,2786.1,3.04903156]
[1738735199516,3.2078,2788.0,2786.7,3.2078]
[1738735199716,3.04903156,2788.1,2786.3,3.2078]
[1738735199717,3.62292156,2787.3,2786.3,3.2078]
[1738735199906,6.25683156,2786.9,2786.0,3.2078]
[1738735200112,6.25683156,2786.9,2785.3,3.04903156]
[1738735200113,0.05744222,2786.8,2785.7,3.2078]
[1738735200315,3.2078,2786.4,2785.7,3.2078]
[1738735200518,3.04903156,2786.5,2785.7,3.2078]
[1738735200718,3.04903156,2786.9,2786.0,3.2078]
[1738735201018,0.28464036,2787.0,2785.3,3.04903156]
[1738735201019,0.00538522,2786.3,2786.1,3.04903156]
[1738735201317,0.28464036,2787.0,2786.2,3.2078]
[1738735201518,3.04903156,2787.7,2786.8,3.2078]
[1738735201713,3.2078,2787.5,2786.1,3.2078]
[1738735201908,0.57404,2786.6,2785.8,3.21318522]
[1738735202112,3.04903156,2786.5,2785.8,0.00538522]
[1738735202312,0.00538522,2786.5,2785.8,0.00538522]
[1738735202508,0.00538522,2786.5,2786.0,3.2078]
[1738735202717,0.5741,2786.3,2785.8,0.00538522]
[1738735202917,0.57417,2785.9,2785.8,0.00538522]
[1738735203110,0.05745459,2785.9,2785.4,3.2078]
[1738735203308,0.57423,2785.6,2785.1,3.2078]
[1738735203520,6.83105156,2785.7,2785.1,3.2078]
[1738735203817,3.04903156,2785.3,2784.5,3.2078]
[1738735204319,3.04903156,2785.3,2784.6,0.00538522]
[1738735204816,0.05747298,2785.2,2784.6,0.00538522]
[1738735205118,6.25683156,2785.0,2784.6,0.00538522]
[1738735205314,0.05747298,2784.9,2784.6,0.00538522]
[1738735205711,3.78222,2784.7,2784.6,0.00538522]
[1738735205918,0.05747298,2784.7,2783.9,3.2078]
[1738735206215,3.04903156,2784.0,2783.3,3.2078]
[1738735206416,3.04903156,2784.8,2783.7,3.2078]
[1738735206615,3.04903156,2784.8,2783.3,3.04903156]
[1738735206616,3.04903156,2784.8,2784.2,3.2078]
[1738735206811,3.04903156,2784.8,2783.9,3.2078]
[1738735207011,3.04903156,2784.4,2783.2,4.64116301]
[1738735207214,3.04903156,2784.4,2784.2,0.00363118]
[1738735208016,3.2078,2784.7,2784.2,0.00363118]
[1738735208416,4.76603156,2784.8,2784.2,0.00363118]
[1738735208611,0.00538522,2785.0,2784.2,0.00363118]
[1738735208819,0.00538522,2785.0,2784.4,3.2078]
[1738735209017,0.00538522,2785.0,2784.9,3.2078]
[1738735209419,0.00538522,2785.0,2784.2,0.00363118]
[1738735209719,3.04903156,2784.7,2784.2,0.00363118]
[1738735209922,3.2078,2784.6,2784.2,0.00363118]
[1738735210123,3.78225,2784.6,2784.2,0.00363118]
[1738735210313,0.05749265,2784.5,2784.2,0.00363118]
[1738735210718,3.2078,2784.6,2784.2,0.19343118]
[1738735210919,3.2078,2784.3,2784.2,0.19343118]
[1738735211121,6.83133156,2784.3,2784.2,0.19343118]
[1738735211422,3.04903156,2783.4,2782.8,3.2078]
[1738735211721,6.25683156,2783.0,2782.1,3.2078]
[1738735212019,3.04903156,2782.6,2781.7,3.2078]
[1738735212225,3.04903156,2782.2,2781.7,3.2078]
[1738735212520,3.04903156,2782.6,2782.0,1.4378]
[1738735212724,3.33471717,2782.3,2782.0,1.4378]
[1738735213120,3.2078,2782.1,2782.0,1.4378]
[1738735213315,3.2078,2782.1,2781.4,3.2078]
[1738735213920,0.00538522,2782.4,2781.4,3.2078]
[1738735214122,0.00538522,2782.4,2781.7,3.2078]
[1738735214824,3.33471717,2782.3,2781.6,3.2224]
[1738735215318,3.2078,2782.2,2781.6,3.2224]
[1738735215519,3.33471717,2782.3,2781.6,1.438]
[1738735216424,3.26534609,2782.2,2781.6,1.438]
[1738735216623,3.33471717,2781.9,2781.0,3.2078]
[1738735216818,3.33471717,2781.9,2781.4,2.1319]
[1738735217725,3.33471717,2781.9,2781.3,3.2078]
[1738735218319,3.33471717,2781.9,2781.3,3.4954]
[1738735219034,6.54251717,2781.9,2781.3,0.2876]
[1738735219727,5.04071717,2781.8,2781.3,0.2876]
[1738735219927,5.61574717,2781.8,2781.3,0.2876]
[1738735220132,7.11761717,2781.4,2781.3,0.2876]
[1738735220334,7.11761717,2781.4,2779.9,1.6734]
[1738735220335,0.57518,2781.1,2779.9,1.6734]
[1738735220525,3.33471717,2780.7,2779.5,3.2078]
[1738735221124,3.33471717,2780.3,2779.5,5.3421]
[1738735221326,3.33471717,2780.3,2779.5,6.7812]
[1738735221631,3.2078,2780.2,2779.5,7.069]
[1738735221832,0.0053953,2780.4,2779.8,3.2078]
[1738735222132,0.0053953,2780.4,2780.1,3.2078]
[1738735222326,0.0053953,2780.4,2779.7,3.2078]
[1738735222526,0.0053953,2780.4,2780.0,3.2078]
[1738735222933,3.33471717,2781.9,2780.3,3.2078]
[1738735223125,3.33471717,2782.3,2781.2,3.2078]
[1738735223326,0.05754798,2782.2,2781.1,3.2078]
[1738735223530,3.33471717,2782.3,2781.1,3.2078]
[1738735223733,3.33471717,2781.9,2781.1,3.2078]
[1738735224031,3.33471717,2782.3,2781.5,3.2078]
[1738735224429,0.0053953,2781.8,2781.2,3.2131953]
[1738735225626,0.0053953,2781.8,2781.5,3.2078]
[1738735226237,0.0053953,2781.8,2781.2,3.2131953]
[1738735227730,3.26536181,2781.7,2781.2,0.0053953]
[1738735227934,3.2078,2781.7,2781.2,0.0053953]
[1738735228132,3.33471717,2781.5,2781.2,0.0053953]
[1738735228337,3.2078,2781.7,2781.2,0.0053953]
[1738735228536,3.33471717,2781.5,2781.2,0.0053953]
[1738735229230,0.0053953,2781.8,2781.2,3.2131953]
[1738735229429,0.0053953,2781.8,2781.3,3.2078]
[1738735229831,0.0053953,2781.8,2781.2,0.0053953]
[1738735230025,3.33471717,2781.5,2781.2,0.0053953]
[1738735230435,8.33471717,2781.5,2781.2,0.0053953]